[Event "Czech Open-GM 2022"]
[Site "Pardubice"]
[Date "2022.07.22"]
[Round "1.9"]
[White "Stachowiak, Kamil"]
[Black "Flajsman, Pavel"]
[Result "1-0"]
[ECO "D57"]
[WhiteElo "2476"]
[BlackElo "2177"]
[Annotator "TA"]
[PlyCount "81"]
[EventDate "2022.07.22"]
[EventType "swiss"]
[EventCountry "CZE"]
[SourceTitle "playchess.com"]
[Source "ChessBase"]
[SourceQuality "1"]
[TimeControl "40/5400+30:1800+30"]

{[%evp 23,81,11,14,6,6,4,15,0,37,0,16,0,0,0,14,8,16,27,50,47,43,44,56,22,58,52,72,51,59,52,77,79,91,115,223,210,240,241,451,437,456,454,445,452,449,393,420,313,2448,735,657,485,2247,1926,29968,29970,6219,6170,1602,1205]} 1. d4 {[%emt 0:00:02]} d5 {[%emt 0:01:06]} 2. Nf3 {[%emt 0:00:08]} Nf6 {[%emt 0:00:20]} 3. c4 {[%emt 0:00:08]} e6 {[%emt 0:03:24]} 4. Nc3 {[%emt 0:00:42]} Be7 {[%emt 0:03:40]} 5. Bg5 {[%emt 0:02:25]} h6 {[%emt 0:00:51]} 6. Bh4 {[%emt 0:00:09]} O-O {[%emt 0:00:17]} 7. e3 {[%emt 0:00:19]} Ne4 {[%emt 0:08:05]} 8. Bxe7 {[%emt 0:00:37]} Qxe7 {[%emt 0:00:07]} 9. cxd5 {[%emt 0:02:31]} Nxc3 {[%emt 0:02:17]} 10. bxc3 {[%emt 0:00:06]} exd5 {[%emt 0:00:04]} 11. Bd3 {[%emt 0:00:23]} c5 {[%emt 0:08:20]} 12. O-O {[%emt 0:02:28]} Nd7 {[%emt 0:05:39][%cal Bb8d7,Bd7f6,Bf6g4][%mdl 32]} 13. a4 {[%emt 0:03:41] D53: Queen's Gambit Declined: 4 Bg5 Be7: Early deviations.} Nf6 {[%emt 0:05:19] [#]} 14. Qb1 $146 {[%emt 0:06:14]} ({Predecessor:} 14. Ne5 Be6 15. f4 Rac8 16. Qf3 Rc7 17. a5 {1-0 (17) Lipsits,S (1821)-Ma,J ICCF email 2017}) 14... Be6 {[%emt 0:08:48]} 15. Ne5 {[%emt 0:10:18] The position is equal.} Ng4 {[%emt 0:23:26]} 16. Nf3 {[%emt 0:02:13]} (16. Bh7+ {keeps more tension.} Kh8 17. Nxg4 Bxg4 18. Bf5) 16... Rab8 {[%emt 0:09:10]} 17. h3 {[%emt 0:03:00]} Nf6 {[%emt 0:00:04]} 18. Ne5 {[%emt 0:00:15]} Nd7 {[%emt 0:00:10]} 19. f4 {[%emt 0:00:27]} Nxe5 {[%emt 0:00:14]} 20. dxe5 {[%emt 0:02:23]} f5 {[%emt 0:01:15]} 21. Kh1 {[%emt 0:06:50]} Rbd8 {[%emt 0:03:51]} 22. Qb2 {[%emt 0:12:17]} Rf7 {[%emt 0:09:53]} 23. Be2 {[%emt 0:02:25]} Qc7 {[%emt 0:03:04]} 24. Rfd1 {[%emt 0:03:03]} Rfd7 {[%emt 0:00:30]} 25. Bf3 {[%emt 0:02:51]} g5 {[%emt 0:01:29]} 26. g3 {[%emt 0:00:30]} Kf7 {[%emt 0:00:30]} 27. Rd2 {[%emt 0:07:10]} Rg8 {[%emt 0:00:14]} 28. Kh2 {[%emt 0:02:01] White is more active.} Qd8 {[%emt 0:00:36] [#]} (28... Rgd8 $16) 29. Rad1 $1 $18 {[%emt 0:01:02][%cal Of3d5]} gxf4 {[%emt 0:00:15]} 30. exf4 {[%emt 0:02:10][%cal Of3d5]} b6 $2 {[%emt 0:01:22] [#]} (30... Kf8 31. Qb3 c4) 31. Bxd5 $1 {[%emt 0:06:34][%mdl 512]} Bxd5 {[%emt 0:00:27]} (31... Rxd5 $2 32. Rxd5 Bxd5 33. Qc2 $18) 32. c4 $1 {[%emt 0:00:05]} Be6 {[%emt 0:00:38] Strongly threatening ...Rxd2+.} 33. Rxd7+ {[%emt 0:00:06]} Bxd7 {[%emt 0:00:02] [#]} 34. Qd2 $1 {[%emt 0:00:27]} ({Weaker is} 34. e6+ Kxe6 35. Qe5+ Kf7 $11) 34... Ke8 {[%emt 0:00:28] Threatens to win with ...Rg6.} 35. e6 $1 {[%emt 0:00:33] Intending Qd5 and mate.} Rg7 $2 {[%emt 0:00:10]} (35... Qe7) 36. Qd6 {[%emt 0:01:51]} (36. exd7+ Rxd7 37. Qxd7+ Qxd7 38. Rxd7 Kxd7 $18) (36. Qd5 $142 h5 37. exd7+ Kf8 38. Qxf5+ Rf7 39. Qxh5 Qxd7 40. Qh8+ Ke7 41. Rxd7+ Kxd7 42. Qb8) 36... Qc8 {[%emt 0:01:40]} 37. Qe5 {[%emt 0:02:19]} Kf8 {[%emt 0:00:40]} (37... Bxa4 $142 38. Qxg7 Qxe6) 38. Qf6+ {[%emt 0:00:53]} Kg8 {[%emt 0:00:12]} 39. exd7 {[%emt 0:00:09]} Qxd7 {[%emt 0:00:50]} 40. Rxd7 {[%emt 0:00:06]} Rxd7 {[%emt 0:00:01]} 41. Qg6+ {[%emt 0:30:25] Weighted Error Value: White=0.17 (very precise) /Black=0.46} 1-0

[Event "Czech Open-GM 2022"]
[Site "Pardubice"]
[Date "2022.07.22"]
[Round "1.10"]
[White "Hoerr, Matthias"]
[Black "Haring, Filip"]
[Result "0-1"]
[ECO "B42"]
[WhiteElo "2177"]
[BlackElo "2451"]
[Annotator "TA"]
[PlyCount "72"]
[EventDate "2022.07.22"]
[EventType "swiss"]
[EventCountry "CZE"]
[SourceTitle "playchess.com"]
[Source "ChessBase"]
[SourceQuality "1"]
[TimeControl "40/5400+30:1800+30"]

{[%evp 19,72,40,67,33,35,35,50,41,53,13,12,10,31,33,42,37,50,41,75,39,181,170,167,172,157,152,167,150,255,186,177,50,77,-44,-55,-354,-366,-552,-549,-520,-539,-1621,-1229,-1563,-790,-852,-842,-1700,-1548,-1585,-1435,-2713,-710,-29978,-29967]} 1. e4 {[%emt 0:00:03]} c5 {[%emt 0:00:07]} 2. Nf3 {[%emt 0:00:13]} e6 {[%emt 0:00:27]} 3. d4 {[%emt 0:00:33]} cxd4 {[%emt 0:00:08]} 4. Nxd4 {[%emt 0:00:02]} a6 {[%emt 0:00:10]} 5. Bd3 {[%emt 0:01:03]} Qc7 {[%emt 0:00:59]} 6. O-O {[%emt 0:01:04]} Nf6 {[%emt 0:00:10]} 7. Qe2 {[%emt 0:03:28]} d6 {[%emt 0:00:17]} 8. f4 {[%emt 0:02:27]} Nbd7 {[%emt 0:02:43]} 9. c4 {[%emt 0:04:41]} Be7 {[%emt 0:02:37]} 10. Nc3 {[%emt 0:03:17]} O-O {[%emt 0:00:43] [#] 10...0-0 is better than 10...b6.} 11. a4 $146 {[%emt 0:06:47] B42: Sicilian: Kan Variation: 5 Bd3.} ({Predecessor:} 11. Be3 b6 12. Rac1 Re8 13. g4 Nc5 14. Bb1 Bb7 15. Bf2 e5 16. fxe5 dxe5 17. Nf5 Ne6 18. Nd5 Nf4 19. Qf3 N6xd5 20. cxd5 {1-0 (65) Demchenko,A (2654)-Bharath,S (2479) Chess.com INT 2022}) 11... b6 {[%emt 0:03:29]} 12. Bd2 {[%emt 0:12:19]} g6 {[%emt 0:18:29]} 13. b4 {[%emt 0:05:00] White is slightly better.} Re8 {[%emt 0:05:44]} 14. Rfc1 {[%emt 0:05:23]} Bb7 {[%emt 0:02:20]} 15. Nb3 {[%emt 0:03:40]} Rac8 {[%emt 0:02:22]} 16. a5 {[%emt 0:03:30]} bxa5 {[%emt 0:06:41]} 17. Nxa5 {[%emt 0:06:14]} Ba8 $1 {[%emt 0:06:36]} ({Resist} 17... Qb6+ 18. Be3 Qc7 19. b5 $16) 18. Kh1 {[%emt 0:05:37]} Qb8 {[%emt 0:02:08]} 19. Rcb1 $36 {[%emt 0:04:56][%cal Oc4c5,Bc1b1,Bb1b4,Bb4c4][%mdl 2080] Black is under pressure.} Bd8 {[%emt 0:11:08]} (19... Bf8 $14) 20. c5 $1 $18 {[%emt 0:06:37]} dxc5 {[%emt 0:04:06]} 21. Bxa6 {[%emt 0:00:44]} cxb4 {[%emt 0:08:00] [#] Threatens to win with ...Bxa5.} 22. Bxc8 {[%emt 0:01:34]} Qxc8 {[%emt 0:00:05]} 23. Rxb4 {[%emt 0:00:20]} e5 {[%emt 0:05:40]} (23... Be7 $16 24. Rc4 Qa6) 24. Rc4 {[%emt 0:07:56]} Qb8 {[%emt 0:06:43]} 25. Rb1 {[%emt 0:02:30]} (25. f5 $18) 25... Qd6 $1 $14 {[%emt 0:01:37]} 26. Nb5 {[%emt 0:04:39]} ({Better is} 26. Ra4 $16 {Strongly threatening Nc4.} exf4 27. Nc4) 26... Qa6 $15 {[%emt 0:00:18] White must now prevent ...exf4.} 27. Qe1 $2 {[%emt 0:04:42][%mdl 8192]} ({Much worse is} 27. fxe5 Rxe5 28. Nd6 (28. Ra4 $2 Nxe4 29. Be3 Bxa5 $19) 28... Bxe4 29. Nxe4 Nxe4 30. Rxe4 Qxe2 31. Rxe2 Rxe2 $17) (27. f5 $15) 27... exf4 $19 {[%emt 0:01:06][%cal Ra8e4]} 28. Nc7 {[%emt 0:02:49]} (28. Qf1 $142 Nxe4 29. Bxf4 Qxa5 30. Rc2) 28... Bxc7 {[%emt 0:00:14][%mdl 64] [#] Deflection} 29. Rxc7 {[%emt 0:00:01]} Bxe4 {[%emt 0:00:52]} 30. Qg1 {[%emt 0:02:29]} Bxb1 {[%emt 0:00:23]} 31. Qxb1 {[%emt 0:00:07]} Qd6 {[%emt 0:01:29]} 32. Qc1 {[%emt 0:00:33]} Ne4 {[%emt 0:03:30]} 33. Be1 {[%emt 0:01:00] Against Nf2+} Nec5 {[%emt 0:01:41]} 34. Rc6 {[%emt 0:00:14]} Qd5 {[%emt 0:01:22] ...Re2 is the strong threat.} 35. Qd2 {[%emt 0:00:43] Prevents Re2.} Nb3 {[%emt 0:01:19]} 36. Qf2 {[%emt 0:00:43]} Qd1 {Weighted Error Value: White=1.45/Black=0.68} 0-1

[Event "Czech Open-GM 2022"]
[Site "Pardubice"]
[Date "2022.07.22"]
[Round "1.11"]
[White "Brodowski, Piotr"]
[Black "Balazs, Balint"]
[Result "1-0"]
[ECO "A21"]
[WhiteElo "2450"]
[BlackElo "2174"]
[Annotator "TA"]
[PlyCount "57"]
[EventDate "2022.07.22"]
[EventType "swiss"]
[EventCountry "CZE"]
[SourceTitle "playchess.com"]
[Source "ChessBase"]
[SourceQuality "1"]
[TimeControl "40/5400+30:1800+30"]

{[%evp 9,57,42,50,44,36,45,58,53,60,52,50,52,60,52,54,55,67,60,82,66,86,85,108,122,128,118,139,81,96,93,164,150,254,256,258,260,239,254,331,312,347,337,522,509,472,508,637,615,954,645]} 1. c4 e5 {[%emt 0:15:53]} 2. Nc3 {[%emt 0:00:48]} d6 3. g3 {[%emt 0:04:06]} Nc6 {[%emt 0:00:17]} 4. Nf3 {[%emt 0:01:32]} Be6 {[%emt 0:00:54]} 5. d4 {[%emt 0:05:35]} exd4 {[%emt 0:06:15]} 6. Nxd4 {[%emt 0:00:25] A27: English Opening: Three Knights Variation.} Nxd4 {[%emt 0:07:58]} 7. Qxd4 {[%emt 0:00:08]} Nf6 {[%emt 0:00:10]} 8. Bg2 {[%emt 0:05:37] White is slightly better.} c6 {[%emt 0:07:42]} 9. O-O {[%emt 0:03:29]} Be7 {[%emt 0:03:59]} 10. b3 {[%emt 0:01:48]} O-O {[%emt 0:01:14]} 11. Bb2 {[%emt 0:00:38]} Qb6 {[%emt 0:00:14]} 12. Qd2 {[%emt 0:04:41]} Rfd8 {[%emt 0:10:56]} 13. e4 $1 {[%emt 0:01:41] Prevents d5.} Qa5 {[%emt 0:00:24]} 14. Rad1 {[%emt 0:04:27][%cal Oc3d5]} Qh5 {[%emt 0:05:10] Inhibits Nd5.} 15. Ne2 {[%emt 0:00:28]} Ng4 {[%emt 0:15:37][%csl Gg4][%cal Rh5h2] [#]} 16. h3 {[%emt 0:02:32] And now Nf4 would win.} Ne5 {[%emt 0:00:06] [#]} 17. Qe3 $146 {[%emt 0:12:36] Inhibits Nf3+.} ({Predecessor:} 17. g4 Bxg4 18. hxg4 Nxg4 19. Qf4 Bg5 20. Qg3 Bh4 21. Qh3 Ne5 22. Ng3 Qg4 23. Qxg4 Nxg4 {1-0 (29) Rosell,K-Oe,O Randers 1973}) 17... Ng6 {[%emt 0:04:16]} (17... Bxh3 $2 18. Nf4 Qh6 19. Nxh3 $18 (19. Bxh3 g5 $16)) 18. Kh2 {[%emt 0:06:16]} (18. g4 $142 Qa5 19. f4 (19. Qd4 f6 $14)) 18... Ne5 {[%emt 0:06:15] ...Ng4+ is the strong threat.} 19. f3 {[%emt 0:00:09] Prevents Ng4+.} Bg5 {[%emt 0:03:18] [#]} (19... a5 $16) 20. Qf2 $1 $18 {[%emt 0:03:06]} f5 {[%emt 0:00:53]} (20... Qh6 $16 {is a better defense.}) 21. exf5 {[%emt 0:02:11]} Bxf5 {[%emt 0:01:51] White must now prevent ...Nd3.} 22. Bxe5 {[%emt 0:00:25]} ({Don't take} 22. g4 $6 Bxg4 23. Bxe5 Bxh3 $18) 22... dxe5 {[%emt 0:01:27]} 23. g4 {[%emt 0:00:07]} Qh6 {[%emt 0:04:33]} 24. gxf5 {[%emt 0:00:22]} Be3 {[%emt 0:00:08]} 25. Qg3 {[%emt 0:00:40]} Rf8 {[%emt 0:00:28]} (25... Bb6 {was necessary.} 26. b4 (26. Qxe5 Re8 $11) 26... Bc7) 26. f4 {[%emt 0:00:25] White is clearly winning.} exf4 {[%emt 0:00:20]} 27. Nxf4 {[%emt 0:00:05]} Rae8 {[%emt 0:00:21]} 28. Ne6 {[%emt 0:00:26]} Rf6 {[%emt 0:01:18]} 29. Kh1 {[%emt 0:00:17] Weighted Error Value: White=0.04 (flawless) /Black=0.41} 1-0

[Event "Czech Open-GM 2022"]
[Site "Pardubice"]
[Date "2022.07.22"]
[Round "1.12"]
[White "Winter, Ondrej"]
[Black "Pantzar, Milton"]
[Result "0-1"]
[ECO "B11"]
[WhiteElo "2168"]
[BlackElo "2447"]
[Annotator "TA"]
[PlyCount "60"]
[EventDate "2022.07.22"]
[EventType "swiss"]
[EventCountry "CZE"]
[SourceTitle "playchess.com"]
[Source "ChessBase"]
[SourceQuality "1"]
[TimeControl "40/5400+30:1800+30"]

{[%evp 12,60,22,0,-16,-18,0,-52,-45,-46,-45,-44,-52,-54,-62,-65,-63,-97,-87,-89,-85,-87,-91,-98,-102,-97,-86,-95,-63,-91,-87,-84,-59,-84,-78,-99,-93,-87,-36,-37,-43,-39,-33,-420,-410,-420,-420,-493,-489,-479,-444]} 1. e4 c6 {[%emt 0:00:40]} 2. Nc3 {[%emt 0:00:16]} d5 {[%emt 0:00:21]} 3. Nf3 {[%emt 0:00:09]} Bg4 {[%emt 0:02:02]} 4. h3 {[%emt 0:00:09]} Bxf3 {[%emt 0:01:11]} 5. Qxf3 {[%emt 0:00:03]} e6 {[%emt 0:00:43]} 6. d4 {[%emt 0:01:57]} dxe4 {[%emt 0:03:28]} 7. Nxe4 {[%emt 0:00:07]} Qxd4 {[%emt 0:01:45] B11: Caro-Kann: Two Knights Variation.} 8. Bd3 {[%emt 0:00:18]} Nd7 {[%emt 0:07:55]} (8... f5 $2 9. Ng5 Nd7 10. O-O $18 (10. Nxe6 Qe5+ 11. Qe3 Ne7 $18)) 9. Be3 {[%emt 0:01:33]} (9. c3 $11 Qd5 10. Bc2) 9... Qd5 $15 {[%emt 0:07:59] Black is slightly better.} 10. Rd1 {[%emt 0:25:38]} Bb4+ {[%emt 0:07:58]} 11. Ke2 {[%emt 0:02:30]} Ngf6 {[%emt 0:05:22] [#]} 12. Nxf6+ $146 {[%emt 0:30:48]} ({Predecessor:} 12. c3 Be7 13. c4 Qe5 14. Rd2 O-O 15. Rhd1 Nxe4 16. Bxe4 Nf6 17. Bb1 Bb4 18. Rd4 {0-1 (42) Philipowski,R (2274)-Zatonskih,A (2466) Belgium 2009}) 12... Nxf6 {[%emt 0:03:25]} 13. Qg3 {[%emt 0:00:07]} Qh5+ {[%emt 0:03:49]} 14. f3 {[%emt 0:00:25]} O-O {[%emt 0:06:36]} 15. Qg5 {[%emt 0:08:46]} Qxg5 {[%emt 0:06:56]} 16. Bxg5 {[%emt 0:00:02]} Nh5 {[%emt 0:00:32] Strongly threatening ...Ng3+.} 17. Kf2 {[%emt 0:03:11] Inhibits Ng3.} Bc5+ {[%emt 0:00:19]} 18. Be3 {[%emt 0:00:16]} Bxe3+ {[%emt 0:04:45]} 19. Kxe3 {[%emt 0:00:01]} e5 {[%emt 0:03:17]} 20. Bc4 {[%emt 0:05:05]} Nf6 {[%emt 0:06:13]} 21. g4 {[%emt 0:05:08]} g5 {[%emt 0:03:52]} 22. Rd6 {[%emt 0:05:44]} Kg7 {[%emt 0:00:32]} 23. Rhd1 {[%emt 0:01:28]} Rae8 {[%emt 0:04:47]} 24. a4 {[%emt 0:03:46]} e4 {[%emt 0:11:37]} (24... a5 $17) 25. f4 $1 {[%emt 0:00:32]} gxf4+ 26. Kxf4 {[%emt 0:00:02]} e3 {[%emt 0:00:16] aiming for ...Re4+.} 27. g5 $2 {[%emt 0:03:38][%mdl 8192] [#] This costs White the game.} ({White should play} 27. Bd3 $15) 27... Ne4 $1 $19 {[%emt 0:01:04] Really sharp!} 28. R6d4 {[%emt 0:01:39]} Nf2 {[%emt 0:01:04][%csl LRd1,LRh3]} 29. Re1 {[%emt 0:00:40]} c5 {[%emt 0:01:29]} 30. Rd7 {[%emt 0:00:58]} Re4+ {[%emt 0:00:21] Weighted Error Value: White=0.46/Black=0.06 (flawless)} 0-1

[Event "Czech Open-GM 2022"]
[Site "Pardubice"]
[Date "2022.07.22"]
[Round "1.13"]
[White "Akesson, Ralf"]
[Black "Hassemeier, Mika"]
[Result "1-0"]
[ECO "E47"]
[WhiteElo "2427"]
[BlackElo "2166"]
[Annotator "TA"]
[PlyCount "63"]
[EventDate "2022.07.22"]
[EventType "swiss"]
[EventCountry "CZE"]
[SourceTitle "playchess.com"]
[Source "ChessBase"]
[SourceQuality "1"]
[TimeControl "40/5400+30:1800+30"]

{[%evp 18,63,20,17,16,16,16,7,7,4,4,4,39,40,134,145,142,71,170,105,107,82,56,58,128,119,288,276,265,282,290,280,282,260,259,256,359,326,341,269,321,252,284,307,332,321,363,343]} 1. d4 {[%emt 0:00:11]} Nf6 {[%emt 0:00:08]} 2. c4 {[%emt 0:00:08]} e6 {[%emt 0:00:08]} 3. Nc3 {[%emt 0:00:43]} Bb4 {[%emt 0:00:11]} 4. e3 {[%emt 0:00:10]} O-O {[%emt 0:00:32]} 5. Bd3 {[%emt 0:00:44]} c5 {[%emt 0:00:59]} 6. Nf3 {[%emt 0:00:45]} d6 {[%emt 0:04:23]} 7. O-O {[%emt 0:02:04]} Nc6 {[%emt 0:04:36]} 8. d5 {[%emt 0:05:59]} Bxc3 {[%emt 0:09:34]} 9. bxc3 {[%emt 0:00:25]} Ne7 {[%emt 0:01:54]} 10. e4 {[%emt 0:01:10]} Ng6 {[%emt 0:04:19] E41: Nimzo-Indian: Rubinstein: 4...c5 5 Bd3, including Hübner Variation.} 11. h3 {[%emt 0:03:13]} e5 {[%emt 0:05:27]} 12. a4 {[%emt 0:01:50][%cal Ba2a4,Ba4a5][%mdl 32] [#]} Nh5 $146 {[%emt 0:04:11] The position is equal.} ({Predecessor:} 12... h6 13. Rb1 Rb8 14. Be3 Nh7 15. Rb2 f5 16. exf5 Bxf5 17. Bxf5 Rxf5 18. Nd2 Nf4 {0-1 (34) Semenov,R (2265)-Volodin,A (2283) Moscow 2014}) 13. Kh2 {[%emt 0:14:31]} Nhf4 {[%emt 0:17:02]} 14. Bb1 {[%emt 0:01:36]} Qd7 {[%emt 0:08:26][%cal Of4g2]} (14... Nh4 $5 {[%cal Rh4g2]} 15. Bxf4 exf4 $11) 15. Ng1 {[%emt 0:02:11]} h5 {[%emt 0:06:27]} (15... Ne7 $14) 16. a5 $1 $16 {[%emt 0:07:29]} h4 {[%emt 0:03:00]} 17. Ra2 {[%emt 0:06:53]} (17. Bc2 $142) 17... Rd8 {[%emt 0:09:48] [#]} (17... f6 $16) 18. Bc2 {[%emt 0:09:45]} ({White should play} 18. Qf3 $1 $18) 18... Nf8 {[%emt 0:02:55]} 19. Bxf4 {[%emt 0:02:58]} exf4 {[%emt 0:00:08]} 20. Qh5 {[%emt 0:01:13]} Qe7 {[%emt 0:04:01] Inhibits e5.} (20... f6 $1 $14) 21. Nf3 {[%emt 0:00:41] White is more active.} Ng6 $2 {[%emt 0:00:24] [#] A mistake that costs the game.} (21... g6 $16 22. Qh6 (22. Qxh4 Qxh4 23. Nxh4 Nd7 $16) 22... f6 23. Nxh4 Qg7 24. Qxg7+ (24. Qxf4 g5 $11) 24... Kxg7) 22. e5 $1 $18 {[%emt 0:03:32] Strongly threatening e6.} (22. Ng5 Qe5 $14) 22... dxe5 {[%emt 0:00:57]} 23. Re1 {[%emt 0:04:21][%cal Bf1e1,Be1e5,Be5e4,Be4e6][%mdl 32] And now Ng5 would win.} (23. Bxg6 $6 fxg6 24. Qxg6 (24. Qxe5 Qxe5 25. Nxe5 Bf5 $16) 24... Qf6 25. Qxf6 gxf6 26. Nxh4 Kf7 $16) 23... Qf6 {[%emt 0:02:32]} 24. Bxg6 {[%emt 0:03:27]} (24. Nxe5 Nxe5 25. Qxe5 (25. Rxe5 g6 $11) 25... Qxe5 26. Rxe5 g6 $16) 24... fxg6 {[%emt 0:01:19]} 25. Qxe5 {[%emt 0:01:50]} Qxe5 {[%emt 0:01:50]} 26. Rxe5 {[%emt 0:00:40]} (26. Nxe5 $6 Re8 27. Rb2 Re7 $18) 26... Kf7 {[%emt 0:03:11]} (26... Bf5 $142 27. Rb2 (27. Nxh4 Re8 $18) 27... Rd7 28. Nxh4 Bd3) 27. Re4 {[%emt 0:02:15]} (27. Nxh4 Kf6 $18) 27... g5 {[%emt 0:00:47]} 28. Nxg5+ {[%emt 0:00:47]} Kf6 {[%emt 0:00:10]} 29. Ne6 {[%emt 0:01:57]} ({Weaker is} 29. Nf3 Bf5 30. Ree2 (30. Rxf4 g5 $11) 30... Rd6 $16) 29... Bxe6 {[%emt 0:00:23]} 30. Rxe6+ {[%emt 0:00:10]} ({Not} 30. dxe6 Kf5 31. Rae2 Rd6 32. Re5+ Kf6 33. Rxc5 Rxe6 34. Rxe6+ Kxe6 $18) 30... Kf7 {[%emt 0:00:36]} 31. Rae2 {[%emt 0:02:18] Hoping for Re7+.} Rd7 {[%emt 0:00:24] Prevents Re7+.} 32. R2e4 {[%emt 0:00:36] Weighted Error Value: White=0.11 (very precise) /Black=0.29 (precise)} 1-0

[Event "Czech Open-GM 2022"]
[Site "Pardubice"]
[Date "2022.07.22"]
[Round "1.14"]
[White "Zaehringer, Daniel"]
[Black "Dobrowolski, Piotr"]
[Result "0-1"]
[ECO "E33"]
[WhiteElo "2166"]
[BlackElo "2423"]
[Annotator "TA"]
[PlyCount "96"]
[EventDate "2022.07.22"]
[EventType "swiss"]
[EventCountry "CZE"]
[SourceTitle "playchess.com"]
[Source "ChessBase"]
[SourceQuality "1"]
[TimeControl "40/5400+30:1800+30"]

{[%evp 11,96,46,45,33,41,0,0,0,-7,-22,-28,-6,0,0,19,11,35,35,31,36,75,41,37,35,39,27,26,33,33,31,102,102,137,143,140,96,102,58,99,-33,-36,-128,-90,-90,-95,-92,-88,-173,-182,-179,-176,-179,-165,-179,-178,-187,-179,-190,-194,-190,-177,-175,-174,-192,-189,-176,-166,-190,-177,-191,-195,-189,-173,-173,-172,-247,-247,-286,-233,-356,-349,-327,-325,-455,-450,-467,-403]} 1. d4 {[%emt 0:00:03]} e6 {[%emt 0:00:09]} 2. c4 {[%emt 0:00:06]} Nf6 {[%emt 0:00:25]} 3. Nc3 {[%emt 0:00:06]} Bb4 {[%emt 0:00:06]} 4. Qc2 {[%emt 0:00:06]} Nc6 {[%emt 0:00:21]} 5. Nf3 {[%emt 0:00:16]} d6 {[%emt 0:00:19]} 6. Bd2 {[%emt 0:00:30]} e5 {[%emt 0:01:14]} 7. dxe5 {[%emt 0:14:59] E33: Nimzo-Indian: Classical: 4...Nc6.} dxe5 {[%emt 0:00:21]} 8. O-O-O {[%emt 0:00:48]} (8. a3 $14 {should be considered.} Be7 9. e3) 8... Bxc3 $11 {[%emt 0:00:32]} 9. Bxc3 {[%emt 0:01:22] The position is equal.} Qe7 {[%emt 0:00:09]} 10. e3 {[%emt 0:00:53]} a5 {[%emt 0:03:17] [#]} 11. a3 $146 {[%emt 0:10:28]} ({Predecessor:} 11. h3 O-O 12. g4 Nb4 13. Qb1 Nd7 14. a3 Nc5 15. Nd2 Na4 16. Ne4 f5 17. gxf5 Bxf5 18. axb4 axb4 {½-½ (30) Dao,T (2565)-Unzicker,F (2335) Budapest 1993}) 11... Nd7 {[%emt 0:13:16]} 12. Nd2 {[%emt 0:09:10]} Nc5 {[%emt 0:04:00]} 13. Ne4 {[%emt 0:02:20]} Be6 {[%emt 0:12:12]} (13... Nb4 {is more complex.} 14. axb4 axb4 15. Bxb4 Ra1+) 14. Nxc5 {[%emt 0:18:09]} Qxc5 {[%emt 0:00:50]} 15. Qb3 {[%emt 0:00:08]} Qa7 {[%emt 0:10:22]} 16. Qb5 {[%emt 0:01:03]} f6 {[%emt 0:02:43]} 17. c5 {[%emt 0:04:50]} Ke7 {[%emt 0:00:37]} 18. Bc4 {[%emt 0:08:32]} Bxc4 {[%emt 0:00:32]} 19. Qxc4 {[%emt 0:00:06]} Rad8 {[%emt 0:03:48]} 20. f4 {[%emt 0:01:16] [#] And now fxe5 would win.} exf4 {[%emt 0:06:46]} (20... Rxd1+ $14 21. Rxd1 Qa6) 21. exf4 $16 {[%emt 0:01:47] Hoping for Rhe1+.} Rxd1+ {[%emt 0:00:35]} 22. Rxd1 {[%emt 0:00:10] aiming for Re1+.} Rd8 {[%emt 0:00:34]} 23. Re1+ {[%emt 0:03:17]} Kf8 {[%emt 0:00:06]} 24. Re6 {[%emt 0:01:00][%cal Oc3f6]} (24. g4 {feels hotter.} Qa8 25. g5 Re8 26. Rg1) 24... Ne7 {[%emt 0:08:38]} 25. Qe4 {[%emt 0:07:05]} ({Much weaker is} 25. Bxf6 $6 gxf6 26. Rxf6+ Ke8 27. Qf7+ Kd7 28. Qe6+ Ke8 29. Qf7+ Kd7 30. Qe6+ Ke8 31. Qf7+ $11) (25. g4 $16 {Strongly threatening g5.} Nd5 26. g5 Nxc3 27. bxc3 (27. Qxc3 Rd5 $14)) 25... Qxc5 $15 {[%emt 0:00:43] ...Nd5 is the strong threat.} 26. Qxh7 {[%emt 0:00:53]} ({Better is} 26. Qxb7 $15 Nd5 27. Qc6 Qg1+ 28. Re1 Qxg2 29. Qc5+ Kg8 30. Qc6) 26... Qg1+ {[%emt 0:09:45]} 27. Re1 {[%emt 0:00:14]} Qxg2 {[%emt 0:00:28]} 28. Qh8+ {[%emt 0:03:09]} Ng8 {[%emt 0:00:12] Black is more active.} 29. Qh5 {[%emt 0:00:13] Against Qg4} (29. Bxa5 $17 b6 30. Bc3) 29... b6 $19 {[%emt 0:01:07]} 30. Kb1 {[%emt 0:05:01]} Qc6 {[%emt 0:02:11]} 31. Ka1 {[%emt 0:02:56]} Rd3 {[%emt 0:02:00]} 32. Qe2 {[%emt 0:01:33]} Qd7 {[%emt 0:01:30]} 33. Qh5 {[%emt 0:01:16]} Rd5 {[%emt 0:00:50]} 34. Qe2 {[%emt 0:00:30]} Nh6 {[%emt 0:02:49]} 35. Qf3 {[%emt 0:01:08]} Nf7 {[%emt 0:02:18]} 36. Rg1 {[%emt 0:01:06]} Nd8 {[%emt 0:01:00]} 37. h4 {[%emt 0:01:17]} Qf5 {[%emt 0:01:43]} 38. Re1 {[%emt 0:00:48]} Qh5 {[%emt 0:00:43]} 39. Qe4 {[%emt 0:00:45]} Rd1+ {[%emt 0:00:08]} 40. Rxd1 {[%emt 0:00:09]} Qxd1+ {[%emt 0:00:03][%mdl 4096] Endgame KQB-KQN} 41. Ka2 {[%emt 0:30:11]} Qd6 {[%emt 0:31:02]} 42. f5 {[%emt 0:00:00]} Nc6 {[%emt 0:00:00]} 43. h5 {[%emt 0:00:00] [#]} (43. b4 {was called for.}) 43... Ne7 $1 {[%emt 0:00:00]} 44. Qa8+ {[%emt 0:00:00]} Kf7 {[%emt 0:00:00]} 45. h6 {[%emt 0:00:00]} (45. Qf3 {might work better.}) 45... gxh6 {[%emt 0:00:00]} 46. Qh8 {[%emt 0:00:00]} Qd5+ {[%emt 0:00:00]} ({Don't blunder} 46... Nxf5 $2 47. Qh7+ Ke6 48. Qh8 $19) 47. b3 {[%emt 0:00:00]} Qg2+ {[%emt 0:00:00]} 48. Bb2 {[%emt 0:00:00]} Ng8 {[%emt 0:00:00] Weighted Error Value: White=0.27 (precise) /Black=0.07 (flawless)} 0-1